bitfinex/quotes_SOLUSD_20251031
["timestamp","ask_amount","ask_price","bid_price","bid_amount"]
[1761903785506,4.00858625,186.78,186.77,67.73417893]
[1761903788125,4.00858625,186.78,186.77,62.38]
[1761903788299,4.00858625,186.78,186.77,61.7]
[1761903788796,4.00858625,186.78,186.77,62.42]
[1761903791226,4.0123062,186.78,186.77,62.42]
[1761903795025,4.0123062,186.78,186.77,61.7]
[1761903798530,4.0123062,186.78,186.77,62.42]
[1761903799620,4.0123062,186.78,186.77,61.7]
[1761903800025,4.0123062,186.78,186.76,62.42]
[1761903800212,4.0123062,186.77,186.76,62.42]
[1761903800415,4.0123062,186.77,186.76,61.7]
[1761903800804,4.0123062,186.77,186.76,62.42]
[1761903804499,4.0123062,186.77,186.76,81.09091119]
[1761903804700,0.1,186.83,186.77,10.2153124]
[1761903804904,4.01561009,186.82,186.81,3.10113317]
[1761903805322,4.01561009,186.82,186.81,3.82113317]
[1761903805814,4.01561009,186.82,186.81,0.72]
[1761903806126,4.01561009,186.82,186.81,3.82113317]
[1761903806722,0.1,186.83,186.81,3.82113317]
[1761903808638,0.1,186.83,186.81,0.72]
[1761903808934,3.76113317,186.82,186.8,61.7]
[1761903809126,3.76113317,186.81,186.8,61.7]
[1761903809519,7.37513777,186.81,186.8,61.7]
[1761903809726,3.76113317,186.81,186.8,61.7]
[1761903809932,7.37513777,186.81,186.75,61.7]
[1761903810145,3.10113317,186.78,186.75,61.7]
[1761903810616,0.66,186.77,186.75,61.7]
[1761903812118,3.10113317,186.77,186.75,61.7]
[1761903812545,12.72808966,186.79,186.75,62.41]
[1761903812835,0.66,186.78,186.75,62.41]
[1761903813338,3.76113317,186.78,186.75,62.41]
[1761903815319,0.66,186.78,186.75,62.41]
[1761903816422,9.11480107,186.79,186.75,62.41]
[1761903816734,4.27328859,186.79,186.75,67.76473485]
[1761903816934,3.10113317,186.8,186.76,0.71]
[1761903817120,3.76113317,186.8,186.76,0.71]
[1761903817436,0.66,186.79,186.76,0.71]
[1761903817838,7.37442176,186.79,186.75,61.7]
[1761903818040,3.10113317,186.78,186.75,62.41]
[1761903819031,6.01393594,186.78,186.75,62.41]
[1761903819226,9.11506911,186.78,186.75,62.41]
[1761903819538,9.11506911,186.78,186.75,61.7]
[1761903821121,6.01393594,186.78,186.75,62.41]
[1761903821539,5.35393594,186.78,186.75,61.7]
[1761903821846,0.66,186.77,186.75,61.7]
[1761903823546,3.10113317,186.76,186.75,61.7]
[1761903824052,3.76113317,186.76,186.75,61.7]
[1761903824723,9.11559879,186.76,186.75,61.7]
[1761903824920,5.35446562,186.76,186.75,61.7]
[1761903826050,12.7285301,186.78,186.75,61.7]
[1761903826551,12.7285301,186.78,186.75,0.71]
[1761903826727,6.01421073,186.77,186.73,0.71]
[1761903827238,5.35421073,186.77,186.73,9.16645474]
[1761903827643,5.35421073,186.77,186.74,0.71]
[1761903827937,6.01421073,186.77,186.74,0.71]
[1761903830442,9.1153439,186.77,186.74,0.71]
[1761903831061,3.76113317,186.76,186.72,61.7]
[1761903831371,3.10113317,186.75,186.72,62.41]
[1761903831654,3.76113317,186.75,186.72,62.41]
[1761903832339,3.76113317,186.75,186.72,0.71]
[1761903832542,8.45570372,186.76,186.73,0.71]
[1761903833955,3.10113317,186.76,186.73,0.71]
[1761903834156,9.1153556,186.77,186.73,0.71]
[1761903834558,0.66,186.76,186.73,0.71]
[1761903834864,5.35422243,186.77,186.73,0.71]
[1761903835155,8.4553556,186.77,186.73,0.71]
[1761903835363,9.1153556,186.77,186.73,0.71]
[1761903835560,0.66,186.81,186.75,3.10113317]
[1761903835861,8.45449238,186.8,186.75,64.80113317]
[1761903836060,8.45449238,186.8,186.76,0.71]
[1761903836353,9.11449238,186.8,186.76,0.71]
[1761903836552,8.45449238,186.8,186.75,71.48882769]
[1761903836743,3.10113317,186.78,186.75,61.7]
[1761903837137,0.66,186.77,186.75,61.7]
[1761903837337,0.66,186.77,186.74,62.41]
[1761903840671,5.35397524,186.78,186.74,61.7]
[1761903840846,6.06397524,186.78,186.75,0.68]
[1761903841169,0.71,186.78,186.75,0.68]
[1761903841559,0.71,186.78,186.75,3.78113317]
[1761903842147,5.35366849,186.79,186.76,0.68]
[1761903842347,6.06366849,186.79,186.75,6.03473653]
[1761903842747,5.35366849,186.79,186.76,0.68]
[1761903842962,0.71,186.79,186.76,0.68]
[1761903843659,0.71,186.79,186.74,6.70938003]
[1761903843860,3.10113317,186.78,186.73,61.7]
[1761903844167,3.10113317,186.78,186.73,62.38]
[1761903844370,0.71,186.77,186.73,62.38]
[1761903844772,3.81113317,186.77,186.73,67.7353098]
[1761903845147,3.81113317,186.77,186.73,67.0553098]
[1761903845347,0.71,186.77,186.73,67.7353098]
[1761903845570,9.16514654,186.78,186.74,0.68]
[1761903847173,8.45514654,186.78,186.74,0.68]
[1761903847362,0.71,186.77,186.74,0.68]
[1761903848258,9.16542506,186.77,186.73,62.38]
[1761903848775,3.81113317,186.76,186.72,61.7]
[1761903849082,3.10113317,186.75,186.72,61.7]
[1761903849282,3.81113317,186.75,186.72,61.7]
[1761903849474,3.81113317,186.75,186.72,62.38]
[1761903852781,9.16601228,186.75,186.72,62.38]
[1761903852955,3.81113317,186.74,186.72,61.7]
[1761903853162,3.10113317,186.73,186.72,61.7]
[1761903853376,3.81113317,186.73,186.69,72.32303096]
[1761903853680,3.81113317,186.73,186.7,0.68]
[1761903854268,3.81113317,186.73,186.7,62.38]
[1761903854766,3.81113317,186.72,186.7,61.7]
[1761903855075,3.10113317,186.72,186.7,61.7]
[1761903856572,3.81113317,186.72,186.7,61.7]
[1761903856776,9.16691946,186.72,186.7,61.7]
[1761903857090,3.81113317,186.71,186.69,9.94303096]
[1761903858182,3.10113317,186.71,186.69,9.94303096]
[1761903858482,3.79113317,186.72,186.69,10.65303096]
[1761903858677,3.10113317,186.72,186.69,10.65303096]
[1761903861485,1.98652204,186.72,186.69,10.65303096]
[1761903863076,2.67652204,186.72,186.69,10.65303096]
[1761903863380,1.98652204,186.72,186.7,0.71]
[1761903863570,3.11222922,186.85,186.75,20.592]
[1761903863770,6.10650219,186.88,186.75,20.592]
[1761903863771,0.1,186.88,186.87,30.38082769]
[1761903863969,0.1,186.88,186.85,0.28432314]
[1761903863970,0.1,186.88,186.86,1.98652204]
[1761903864173,0.1,186.88,186.86,22.57852204]
[1761903864371,0.1,186.88,186.87,2.14482962]
[1761903864686,0.1,186.88,186.87,4.13135166]
[1761903865083,0.1,186.88,186.87,1.98652204]
[1761903865880,0.1,186.88,186.87,7.33783578]
[1761903870492,0.81,186.88,186.85,1.98652204]
[1761903870696,0.81,186.88,186.79,13.38355575]
[1761903870697,6.16103152,186.88,186.83,1.98652204]
[1761903870893,0.71,186.87,186.83,1.98652204]
[1761903872487,0.71,186.87,186.84,1.98652204]
[1761903878695,0.71,186.87,186.85,1.98652204]
[1761903882211,0.71,186.87,186.84,1.98652204]
[1761903882677,0.71,186.87,186.85,1.98652204]
[1761903882876,0.71,186.87,186.84,1.98652204]
[1761903888106,0.1,186.88,186.86,1.98652204]
[1761903888314,0.1,186.88,186.87,1.98652204]
[1761903889614,0.81,186.88,186.87,1.98652204]
[1761903890634,0.1,186.88,186.87,1.98652204]
[1761903890800,0.81,186.88,186.87,1.98652204]
[1761903893296,0.1,186.88,186.87,1.98652204]
[1761903893903,0.81,186.88,186.87,1.98652204]
[1761903894227,0.1,186.88,186.87,1.98652204]
[1761903894925,0.81,186.88,186.87,1.98652204]
[1761903895424,0.81,186.88,186.86,5.35145436]
[1761903895631,0.81,186.88,186.87,1.98652204]
[1761903897102,0.1,186.88,186.87,7.33783578]
[1761903897305,0.1,186.88,186.87,69.03783578]
[1761903897798,0.1,186.88,186.87,78.82666347]
[1761903899022,0.1,186.88,186.87,61.7]
[1761903899210,0.81,186.88,186.87,63.68652204]
[1761903899412,0.1,186.88,186.87,69.03783578]
[1761903900624,0.81,186.88,186.87,69.03783578]
[1761903901207,0.1,186.88,186.87,63.68652204]
[1761903901403,0.1,186.93,186.92,9.93098926]
[1761903901602,0.1,186.96,186.95,20.592]
[1761903901901,0.1,186.96,186.95,30.16523136]
[1761903902420,0.1,186.96,186.95,32.30868177]
[1761903902728,0.1,187.02,186.96,22.43634045]
[1761903902925,0.1,187.02,186.97,11.77534973]
[1761903903132,0.1,187.02,186.97,19.0741248]
[1761903903905,0.1,187.02,186.97,24.42257642]
[1761903904527,0.71,187.0,186.97,7.33497366]
[1761903906211,4.68907371,187.0,186.97,7.33497366]
[1761903906414,0.71,187.0,186.97,7.33497366]
[1761903907719,0.1,187.02,186.97,7.33497366]
[1761903908124,0.1,187.02,186.97,9.47853894]
[1761903908330,0.1,187.02,186.98,9.78882769]
[1761903908627,0.1,187.02,187.01,1.98652204]
[1761903909132,0.1,187.02,187.01,63.68652204]
[1761903910124,0.1,187.02,187.01,69.03382967]
[1761903910631,0.1,187.02,187.01,15.27991783]
[1761903911126,0.1,187.02,187.01,86.76874552]
[1761903912445,0.1,187.02,187.01,78.82265736]
[1761903913512,0.1,187.02,187.01,76.83613532]
[1761903913711,0.1,187.02,187.01,78.82265736]
[1761903917330,0.1,187.06,187.02,0.28432314]
[1761903917522,0.1,187.06,187.05,1.98652204]
[1761903917725,0.75,187.06,187.05,1.98652204]
[1761903918321,0.75,187.06,187.05,11.29683073]
[1761903919122,0.1,187.06,187.05,11.29683073]
[1761903921856,0.75,187.06,187.05,7.33268616]
[1761903922352,0.75,187.06,187.05,69.03268616]
[1761903922548,0.1,187.06,187.05,69.03268616]
[1761903923026,0.75,187.06,187.05,69.03268616]
[1761903923426,0.75,187.06,187.05,61.7]
[1761903925656,0.75,187.06,187.02,8.43757264]
[1761903926748,0.75,187.06,187.02,5.34698021]
[1761903926950,0.75,187.06,187.02,8.43757264]
[1761903927147,6.09588268,187.06,187.0,67.04758402]
[1761903927362,0.75,187.06,187.01,3.09059243]
[1761903927533,0.65,187.05,187.02,3.09059243]
[1761903928057,0.65,187.05,187.03,3.09059243]
[1761903928957,0.65,187.05,187.03,8.43719039]
[1761903929254,0.65,187.05,187.04,3.09059243]
[1761903931245,0.65,187.05,187.04,8.43704238]
[1761903931558,0.1,187.06,187.04,8.43704238]
[1761903931751,0.71,187.05,187.04,5.34644995]
[1761903931954,0.71,187.05,187.04,8.43704238]
[1761903934148,0.81,187.06,187.04,8.43704238]
[1761903934336,0.71,187.05,187.04,3.09059243]
[1761903934539,0.71,187.05,187.03,8.43732824]
[1761903935157,0.71,187.05,187.04,3.09059243]
[1761903938854,4.68581669,187.05,187.04,3.09059243]
[1761903939670,0.71,187.05,187.04,3.09059243]
[1761903939864,0.1,187.06,187.04,8.43699257]
[1761903940079,0.81,187.06,187.04,5.34640014]
[1761903940239,0.81,187.06,187.05,3.09059243]
[1761903940560,4.79063523,187.06,187.05,3.09059243]
[1761903940764,0.81,187.06,187.05,3.09059243]
[1761903941473,4.79352584,187.06,187.04,67.04640014]
[1761903941666,0.81,187.06,187.05,3.09059243]
[1761903941969,4.08352626,187.06,187.05,3.09059243]
[1761903942162,4.08352626,187.06,187.04,70.13699257]
[1761903942474,4.69352626,187.05,187.04,70.13699257]
[1761903947346,4.69352626,187.05,187.04,70.13699257]
[1761903947860,4.69352626,187.05,187.04,61.7]
[1761903948371,10.0397385,187.05,187.01,64.79059243]
[1761903948554,4.69352626,187.04,187.01,64.79059243]
[1761903948754,4.69352626,187.03,187.01,64.79059243]
[1761903948982,3.98352626,187.02,187.01,64.79059243]
[1761903949274,4.69352626,187.02,187.01,64.79059243]
[1761903950574,4.69352626,187.02,187.01,70.13790006]
[1761903951280,3.98352626,187.02,187.01,70.13790006]
[1761903953759,3.98352626,187.02,187.01,67.04730763]
[1761903953958,3.98352626,187.02,187.01,70.13790006]
[1761903954761,4.69352626,187.02,187.01,70.13790006]
[1761903955363,4.69352626,187.02,187.01,64.79059243]
[1761903955981,4.69352626,187.02,187.01,61.7]
[1761903956459,4.69352626,187.02,187.01,64.79059243]
[1761903958185,4.69352626,187.02,187.01,61.7]
[1761903958770,4.69352626,187.02,187.0,3.09059243]
[1761903958969,4.68352626,187.01,186.99,64.79059243]
[1761903959285,3.98352626,187.0,186.99,64.79059243]
[1761903959485,4.68352626,187.0,186.99,64.79059243]
[1761903961792,3.98352626,187.0,186.99,70.13847199]
[1761903963588,4.68352626,187.0,186.99,70.13847199]
[1761903963771,4.68352626,187.0,186.99,64.79059243]
[1761903964877,4.68352626,187.0,186.99,70.13847199]
[1761903967088,4.68352626,187.0,186.99,61.7]
[1761903968581,4.68352626,187.0,186.99,70.13847199]
[1761903971582,4.68352626,187.0,186.99,64.79059243]
[1761903972306,4.68352626,187.0,186.98,61.7]
[1761903972489,4.68352626,186.99,186.93,61.7]
[1761903972673,3.98352626,186.98,186.93,61.7]
[1761903972877,3.98352626,186.97,186.94,3.09059243]
[1761903973081,3.98352626,186.96,186.94,3.09059243]
[1761903973303,0.7,186.96,186.95,3.09059243]
[1761903973598,4.70207577,186.96,186.95,3.09059243]
[1761903974084,4.00207577,186.96,186.95,3.09059243]
[1761903974289,0.7,186.98,186.95,8.43961623]
[1761903974492,0.7,186.98,186.97,3.09059243]
[1761903974799,4.70108042,186.98,186.97,3.09059243]
[1761903979706,4.70108042,186.98,186.96,3.09059243]
[1761903979893,4.66108042,186.97,186.96,3.09059243]
[1761903980084,4.66108042,186.97,186.96,8.43933012]
[1761903980400,4.66108042,186.97,186.96,3.09059243]
[1761903982604,29.54526113,187.06,186.96,8.43933012]
[1761903982813,0.66,187.0,186.96,67.04873769]
[1761903983109,3.99773293,186.99,186.96,83.12633891]
[1761903983309,0.66,187.0,186.96,83.12633891]
[1761903983493,3.9977191,186.99,186.96,83.12633891]
[1761903983687,0.66,187.02,186.97,9.78882769]
[1761903983893,3.99771842,187.01,186.97,71.48882769]
[1761903984095,3.99771842,187.0,186.97,87.56470583]
[1761903984288,0.1,187.06,186.99,9.78882769]
[1761903984510,3.99749284,187.05,186.99,9.78882769]
[1761903984807,3.99749284,187.04,186.99,9.78882769]
[1761903984991,3.99749284,187.03,187.0,3.99749284]
[1761903985195,3.99749284,187.02,187.0,3.99749284]
[1761903985393,0.66,187.05,187.01,5.34730763]
[1761903985603,3.99749188,187.04,187.01,67.04730763]
[1761903985909,0.66,187.05,187.01,80.4155767]
[1761903986087,0.1,187.06,187.01,80.4155767]
[1761903986289,3.99738225,187.05,187.02,7.91298324]
[1761903986522,0.76,187.06,187.02,7.91298324]
[1761903986710,3.99725911,187.05,187.02,7.91298324]
[1761903986907,0.76,187.06,187.03,5.34673581]
[1761903987093,3.99714031,187.05,187.03,5.34673581]
[1761903987297,0.76,187.06,187.04,1.97824581]
[1761903987511,4.65719948,187.05,187.03,5.34673581]
[1761903987812,0.1,187.06,187.03,5.34673581]
[1761903987985,3.99719948,187.05,187.03,5.34673581]
[1761903988185,0.1,187.06,187.03,5.34673581]
[1761903988403,3.99746127,187.05,187.03,5.34673581]
[1761903988607,0.1,187.06,187.04,1.97824581]
[1761903988807,0.8,187.06,187.05,1.97824581]
[1761903988999,4.79713249,187.06,187.05,1.97824581]
[1761903989314,4.79713249,187.06,187.05,7.32440993]
[1761903991004,4.09713249,187.06,187.05,7.32440993]
[1761903991203,4.09713249,187.06,187.05,69.02440993]
[1761903991534,4.79663796,187.06,187.05,69.02440993]
[1761903992015,4.09663796,187.06,187.05,69.02440993]
[1761903992403,0.1,187.06,187.05,69.02440993]
[1761903994507,0.1,187.06,187.05,69.1889256]
[1761903994695,0.8,187.06,187.05,71.16717141]
[1761903994903,0.8,187.06,187.05,69.02440993]
[1761903995223,0.8,187.06,187.05,63.67824581]
[1761903995603,0.8,187.06,187.05,69.02440993]
[1761903996531,4.79401945,187.06,187.05,61.7]
[1761903997794,4.79401945,187.06,187.02,7.32524615]
[1761903997989,4.79401945,187.06,187.02,1.97824581]
[1761903997990,4.69401945,187.05,187.02,1.97824581]
[1761903998194,3.99401945,187.04,187.02,1.97824581]
[1761903998429,0.7,187.03,187.02,1.97824581]
[1761904000712,0.7,187.03,187.01,5.34729516]
[1761904001030,0.7,187.03,187.01,69.02554097]
[1761904001225,0.7,187.03,187.02,1.97824581]
[1761904001430,3.99419388,187.04,187.02,1.97824581]
[1761904001634,0.7,187.05,187.03,1.97824581]
[1761904001836,3.99420935,187.04,187.01,67.04729516]
[1761904002129,0.7,187.05,187.01,67.04729516]
[1761904002900,0.7,187.05,187.04,1.97824581]
[1761904003108,4.69392524,187.05,187.04,1.97824581]
[1761904003505,4.69392524,187.05,187.02,5.34692446]
[1761904003726,0.1,187.06,187.02,5.34692446]
[1761904004033,3.99376947,187.05,187.03,1.97824581]
[1761904004215,0.7,187.05,187.03,1.97824581]
[1761904006233,0.7,187.05,187.04,1.97824581]
[1761904006440,4.69382572,187.05,187.04,1.97824581]
[1761904007413,4.69382572,187.05,187.03,1.97824581]
[1761904007613,0.7,187.04,187.03,1.97824581]
[1761904009830,0.7,187.04,187.02,61.7]
[1761904009831,4.69344279,187.04,187.02,61.7]
[1761904010019,0.7,187.04,187.03,1.97824581]
[1761904010329,4.69367316,187.04,187.02,61.7]
[1761904010522,0.7,187.04,187.02,63.67824581]
[1761904010721,0.7,187.03,187.02,63.67824581]
[1761904011319,0.7,187.03,187.02,61.7]
[1761904011521,0.7,187.03,187.02,63.67824581]
[1761904013229,0.7,187.03,187.02,61.7]
[1761904014146,0.7,187.03,187.02,63.67824581]
[1761904017440,0.7,187.05,187.02,69.02526751]
[1761904017611,3.99436795,187.04,187.02,69.02526751]
[1761904017810,0.7,187.05,187.02,69.02526751]
[1761904018012,3.99436837,187.04,187.02,69.02526751]
[1761904018209,0.1,187.06,187.03,1.97824581]
[1761904018514,0.1,187.06,187.05,1.97824581]
[1761904018730,0.1,187.06,187.05,63.67824581]
[1761904018731,4.09476696,187.06,187.05,63.67824581]
[1761904019119,4.09476696,187.06,187.05,69.02440993]
[1761904020041,0.1,187.06,187.05,17.11323762]
[1761904020631,0.67,187.13,187.07,0.14216157]
[1761904020835,20.592,187.05,186.91,5.35015086]
[1761904021044,0.14216157,187.03,186.97,1.97824581]
[1761904021228,9.3447752,187.02,186.97,1.97824581]
[1761904021564,3.9977535,187.01,187.0,1.97824581]
[1761904021711,4.6677535,187.01,186.99,1.97824581]
[1761904021917,4.6677535,187.0,186.99,1.97824581]
[1761904022315,4.6677535,187.0,186.97,1.97824581]
[1761904022533,3.9977535,186.99,186.94,9.78882769]
[1761904022747,3.9977535,186.98,186.97,1.97824581]
[1761904023118,3.9977535,186.98,186.95,5.3490238]
[1761904023316,0.67,187.0,186.97,1.97824581]
[1761904023541,3.99826954,186.99,186.97,1.97824581]
[1761904023749,3.99826954,186.98,186.97,1.97824581]
[1761904024126,3.99826954,186.98,186.97,11.7670735]
[1761904024725,0.67,187.03,186.97,11.7670735]
[1761904024941,0.67,187.03,187.0,1.97824581]
[1761904024942,3.99883071,187.02,187.0,1.97824581]
[1761904025135,3.99883071,187.01,187.0,1.97824581]
[1761904025446,3.99883071,187.01,187.0,7.32583939]
[1761904025644,4.66883071,187.01,187.0,7.32583939]
[1761904026819,4.66883071,187.01,186.99,1.97824581]
[1761904027017,3.99883071,187.0,186.99,1.97824581]
[1761904028343,3.99883071,187.0,186.99,7.32612537]
[1761904028850,4.66883071,187.0,186.98,7.32636855]
[1761904029147,3.99883071,186.99,186.98,7.32636855]
[1761904029347,3.99883071,186.99,186.98,69.02636855]
[1761904029747,3.99883071,186.99,186.98,67.04812274]
[1761904029933,3.99883071,186.99,186.98,69.02636855]
[1761904030522,3.99883071,186.99,186.98,61.7]
[1761904030728,4.66883071,186.99,186.98,61.7]
[1761904031320,3.99883071,186.99,186.98,69.02641138]
[1761904034926,3.99883071,186.99,186.98,78.81523907]
[1761904035332,3.99883071,186.99,186.98,69.02641138]
[1761904035548,3.99883071,186.99,186.98,78.81523907]
[1761904037536,3.99883071,186.99,186.98,69.02641138]
[1761904039153,4.68883071,186.99,186.98,67.04816557]
[1761904039733,4.68883071,186.99,186.98,69.02641138]
[1761904039932,4.68883071,186.99,186.98,67.04816557]
[1761904040763,4.68883071,186.99,186.98,69.02641138]
[1761904040932,3.99883071,186.99,186.98,69.02641138]
[1761904045464,4.68883071,186.99,186.98,69.02641138]
[1761904047237,4.68883071,186.99,186.98,67.04816557]
[1761904047956,4.68883071,186.99,186.98,70.14161507]
[1761904050060,4.68883071,186.99,186.98,61.7]
[1761904050738,4.68883071,186.99,186.93,13.51544328]
[1761904050739,11.38050192,186.99,186.93,61.7]
[1761904051051,11.34050192,186.98,186.93,61.7]
[1761904051235,3.99883071,186.97,186.93,61.7]
[1761904051435,3.99883071,186.96,186.93,61.7]
[1761904051750,3.99883071,186.95,186.93,61.7]
[1761904052054,3.99883071,186.94,186.93,61.7]
[1761904052249,4.64883071,186.94,186.93,67.04942633]
[1761904052844,4.64883071,186.94,186.93,70.14287583]
[1761904054268,4.64883071,186.94,186.93,61.7]
[1761904054651,4.64883071,186.94,186.93,67.0495961]
[1761904056846,4.64883071,186.94,186.93,70.1430456]
[1761904057058,3.99883071,186.94,186.93,70.1430456]
[1761904058367,4.64883071,186.94,186.93,70.1430456]
[1761904060164,3.99883071,186.94,186.93,70.1430456]
[1761904061453,4.64883071,186.94,186.93,70.1430456]
[1761904062372,3.99883071,186.94,186.93,70.1430456]
[1761904062877,4.64883071,186.94,186.93,70.1430456]
[1761904063051,4.64883071,186.94,186.93,67.0495961]
[1761904063245,4.64883071,186.94,186.93,70.1430456]
[1761904066674,4.64883071,186.94,186.93,67.0495961]
[1761904066873,4.64883071,186.94,186.93,70.1430456]
[1761904068486,4.64883071,186.94,186.93,67.0495961]
[1761904068782,4.64883071,186.94,186.93,70.1430456]
[1761904070476,4.64883071,186.94,186.93,67.0495961]
[1761904070875,4.64883071,186.94,186.93,70.1430456]
[1761904072381,0.65,186.94,186.93,70.1430456]
[1761904072590,4.63981019,186.94,186.93,70.1430456]
[1761904075482,3.98981019,186.94,186.93,70.1430456]
[1761904076190,4.63981019,186.94,186.93,70.1430456]
[1761904077989,3.98981019,186.94,186.93,70.1430456]
[1761904078188,4.63981019,186.94,186.93,70.1430456]
[1761904078688,4.69981019,186.94,186.93,70.1430456]
[1761904080782,3.98981019,186.94,186.93,70.1430456]
[1761904084081,3.98981019,186.94,186.93,67.0495961]
[1761904084280,3.98981019,186.94,186.93,70.1430456]
[1761904087297,4.69981019,186.94,186.93,70.1430456]
[1761904088097,3.98981019,186.94,186.93,70.1430456]
[1761904089798,4.69981019,186.94,186.93,70.1430456]
[1761904090677,4.69981019,186.94,186.93,61.7]
[1761904091098,4.69981019,186.94,186.93,67.0495961]
[1761904091608,4.69981019,186.94,186.93,70.1430456]
[1761904091990,4.69981019,186.94,186.93,67.0495961]
[1761904094688,8.31131333,186.94,186.93,67.0495961]
[1761904096003,8.31131333,186.94,186.93,70.1430456]
[1761904102733,8.31131333,186.94,186.93,83.5115497]
[1761904109321,8.31131333,186.94,186.93,82.39889503]
[1761904110218,3.98981019,186.94,186.93,82.39889503]
[1761904112515,4.69981019,186.94,186.93,82.39889503]
[1761904113704,3.98981019,186.94,186.93,82.39889503]
[1761904117023,4.01455754,186.94,186.93,82.39889503]
[1761904117323,4.01455754,186.94,186.93,90.20692789]
[1761904117507,4.01455754,186.94,186.93,100.25306361]
[1761904120801,4.01455754,186.94,186.93,121.12938675]
[1761904122424,4.01455754,186.94,186.93,111.2254126]
[1761904122604,4.01455754,186.94,186.93,121.12938675]
[1761904124323,0.71,186.98,186.94,9.93098926]
[1761904124528,0.71,186.98,186.97,1.98079483]
[1761904124707,4.71901708,186.98,186.97,63.68079483]
[1761904124907,4.71901708,186.98,186.97,74.37598356]
[1761904127109,4.00901708,186.98,186.97,74.37598356]
[1761904127429,4.71901708,186.98,186.97,74.37598356]
[1761904133726,4.00901708,186.98,186.97,74.37598356]
[1761904134641,4.71901708,186.98,186.97,74.37598356]
[1761904138015,4.71901708,186.98,186.97,69.02753194]
[1761904138544,4.71901708,186.98,186.97,67.04673711]
[1761904140049,4.71901708,186.98,186.97,74.37598356]
[1761904144463,4.00901708,186.98,186.97,74.37598356]
[1761904144665,4.26279884,187.04,187.0,20.592]
[1761904144859,4.26177697,187.08,187.03,1.98079483]
[1761904145055,3.60177697,187.11,187.07,1.98079483]
[1761904145259,3.60177697,187.1,187.01,20.592]
[1761904145474,3.60177697,187.09,187.01,20.592]
[1761904145668,3.60177697,187.08,187.01,20.592]
[1761904145986,3.60177697,187.1,187.02,16.07329422]
[1761904146161,3.60177697,187.09,187.02,16.07329422]
[1761904146361,4.26177697,187.09,187.04,1.98079483]
[1761904146680,0.66,187.08,187.05,1.98079483]
[1761904146860,0.66,187.08,187.06,1.98079483]
[1761904147577,0.66,187.08,187.07,5.34449458]
[1761904151782,0.66,187.08,187.07,67.04449458]
[1761904153164,0.66,187.08,187.07,74.37088196]
[1761904153887,0.66,187.08,187.07,67.04449458]
[1761904154093,0.66,187.08,187.07,69.02528941]
[1761904154468,0.66,187.08,187.07,67.04449458]
[1761904156671,4.65017802,187.08,187.07,67.04449458]
[1761904158390,0.66,187.11,187.07,74.37088196]
[1761904158584,3.98928495,187.1,187.09,1.98079483]
[1761904158890,3.98928495,187.1,187.09,63.68079483]
[1761904159089,3.98928495,187.1,187.09,67.67007978]
[1761904159575,3.98928495,187.1,187.09,73.01510089]
[1761904160794,3.98928495,187.1,187.09,82.80392858]
[1761904160967,3.98928495,187.1,187.09,82.94609015]
[1761904161174,0.66,187.14,187.1,9.78882769]
[1761904161387,3.98700619,187.13,187.12,1.98079483]
[1761904161695,3.98700619,187.13,187.12,7.324959]
[1761904161893,3.98700619,187.13,187.12,23.38964614]
[1761904162104,4.64700619,187.13,187.12,23.38964614]
[1761904162604,4.64700619,187.13,187.12,7.324959]
[1761904163889,3.98700619,187.13,187.12,7.324959]
[1761904164196,4.64700619,187.13,187.12,7.324959]
[1761904164393,4.64277027,187.13,187.12,7.324959]
[1761904164698,3.98277027,187.13,187.12,7.324959]
[1761904164906,4.64277027,187.13,187.12,7.324959]
[1761904165395,0.66,187.13,187.12,7.324959]
[1761904165598,0.66,187.15,187.12,7.324959]
[1761904165803,0.66,187.15,187.13,7.32467118]
[1761904166008,0.66,187.15,187.13,5.34387635]
[1761904166181,3.98200271,187.14,187.13,5.34387635]
[1761904166382,3.98200271,187.14,187.13,61.7]
[1761904166584,4.64200271,187.14,187.13,61.7]
[1761904170009,3.98200271,187.14,187.13,78.8135011]
[1761904170185,0.72,187.16,187.13,78.8135011]
[1761904170515,3.9788387,187.15,187.14,1.98079483]